bitfinex/quotes_BTCUSD_20240929
["timestamp","ask_amount","ask_price","bid_price","bid_amount"]
[1727610821405,0.00165402,65837.0,65836.0,0.617002]
[1727610821844,0.00145402,65837.0,65836.0,0.617002]
[1727610822027,0.00115402,65837.0,65836.0,0.617002]
[1727610822231,0.00085402,65837.0,65836.0,0.617002]
[1727610822654,0.00065402,65837.0,65836.0,0.617002]
[1727610822857,0.00035402,65837.0,65836.0,0.617002]
[1727610850978,0.00035402,65837.0,65836.0,0.708902]
[1727610856745,0.00035402,65837.0,65836.0,0.788502]
[1727610856975,0.00035402,65837.0,65836.0,0.83403151]
[1727610857893,0.00035402,65837.0,65836.0,0.788502]
[1727610858403,0.00035402,65837.0,65836.0,0.83402915]
[1727610859970,0.00035402,65837.0,65836.0,0.83402823]
[1727610864813,0.00035402,65837.0,65836.0,0.788502]
[1727610865049,0.00035402,65837.0,65836.0,0.83402664]
[1727610869747,0.00035402,65837.0,65836.0,0.83402594]
[1727610879685,0.00035402,65837.0,65836.0,0.83402461]
[1727610884192,0.00035402,65837.0,65836.0,0.788502]
[1727610884666,0.00035402,65837.0,65836.0,0.83402461]
[1727610885604,0.00035402,65837.0,65836.0,0.63211394]
[1727610885838,0.00035402,65837.0,65836.0,0.67763655]
[1727610900076,0.00035402,65837.0,65836.0,0.22784861]
[1727610900318,0.09395402,65837.0,65836.0,0.030434]
[1727610900572,0.43436278,65837.0,65836.0,0.029654]
[1727610900832,0.48051096,65837.0,65836.0,0.029654]
[1727610901084,0.41204879,65837.0,65836.0,0.001654]
[1727610901309,0.4633751,65837.0,65836.0,0.015654]
[1727610901554,0.41771253,65837.0,65836.0,0.029654]
[1727610901764,0.41771253,65837.0,65836.0,0.001654]
[1727610902694,0.3720922,65837.0,65836.0,0.001654]
[1727610903130,0.3720922,65837.0,65836.0,0.015654]
[1727610903861,0.3720922,65837.0,65836.0,0.029654]
[1727610904096,0.3720922,65837.0,65836.0,0.015654]
[1727610904337,0.3720922,65837.0,65836.0,0.029654]
[1727610904577,0.3720922,65837.0,65836.0,0.001654]
[1727610904807,0.3720922,65837.0,65836.0,0.015654]
[1727610905034,0.3720922,65837.0,65836.0,0.029654]
[1727610905963,0.2919922,65837.0,65836.0,0.029654]
[1727610916322,0.42051671,65837.0,65836.0,0.029654]
[1727610922013,0.62774987,65837.0,65836.0,0.029654]
[1727610922705,0.74153108,65837.0,65836.0,0.029654]
[1727610923416,0.75075108,65837.0,65836.0,0.029654]
[1727610924081,0.63696987,65837.0,65836.0,0.029654]
[1727610924510,0.7527044,65837.0,65836.0,0.029654]
[1727610926117,0.7507044,65837.0,65836.0,0.029654]
[1727610926336,0.66277851,65837.0,65836.0,0.029654]
[1727610926984,0.7537374,65837.0,65836.0,0.029654]
[1727610927449,0.7517374,65837.0,65836.0,0.029654]
[1727610928087,0.7537374,65837.0,65836.0,0.029654]
[1727610929150,0.66077851,65837.0,65836.0,0.029654]
[1727610929390,0.66277851,65837.0,65836.0,0.029654]
[1727610929612,0.73098014,65837.0,65836.0,0.029654]
[1727610930120,0.66277851,65837.0,65836.0,0.029654]
[1727610931702,0.73097436,65837.0,65836.0,0.029654]
[1727610932393,0.63896987,65837.0,65836.0,0.029654]
[1727610932627,0.7071646,65837.0,65836.0,0.029654]
[1727610933331,0.63896987,65837.0,65836.0,0.029654]
[1727610933561,0.70716461,65837.0,65836.0,0.029654]
[1727610934254,0.63896987,65837.0,65836.0,0.029654]
[1727610934502,0.70716574,65837.0,65836.0,0.029654]
[1727610935428,0.63896987,65837.0,65836.0,0.029654]
[1727610935663,0.75373747,65837.0,65836.0,0.029654]
[1727610935892,0.72992876,65837.0,65836.0,0.029654]
[1727610939344,0.66277864,65837.0,65836.0,0.029654]
[1727610940742,0.77647725,65837.0,65836.0,0.029654]
[1727610941246,0.66277864,65837.0,65836.0,0.029654]
[1727610941493,0.77650529,65837.0,65836.0,0.029654]
[1727610942189,0.66277864,65837.0,65836.0,0.029654]
[1727610942425,0.63896987,65837.0,65836.0,0.029654]
[1727610942876,0.7527149,65837.0,65836.0,0.029654]
[1727610943331,0.63896987,65837.0,65836.0,0.029654]
[1727610944781,0.32952536,65837.0,65836.0,0.029654]
[1727610945026,0.33374536,65837.0,65836.0,0.029654]
[1727610945532,0.35755381,65837.0,65836.0,0.029654]
[1727610946747,0.33374536,65837.0,65836.0,0.029654]
[1727610947199,0.33574536,65837.0,65836.0,0.029654]
[1727610949332,0.33374536,65837.0,65836.0,0.029654]
[1727610950485,0.48194414,65837.0,65836.0,0.029654]
[1727610953335,0.47194414,65837.0,65836.0,0.029654]
[1727610953546,0.48194414,65837.0,65836.0,0.029654]
[1727610953999,0.50575265,65837.0,65836.0,0.029654]
[1727610955361,0.48194414,65837.0,65836.0,0.029654]
[1727610956512,0.48394414,65837.0,65836.0,0.029654]
[1727610956994,0.33574536,65837.0,65836.0,0.029654]
[1727610958766,0.33374536,65837.0,65836.0,0.029654]
[1727610960552,0.47040669,65837.0,65836.0,0.029654]
[1727610962606,0.33374536,65837.0,65836.0,0.029654]
[1727610963085,0.35755376,65837.0,65836.0,0.029654]
[1727610964247,0.33374536,65837.0,65836.0,0.029654]
[1727610967351,0.35755376,65837.0,65836.0,0.029654]
[1727610967801,0.34755376,65837.0,65836.0,0.029654]
[1727610968031,0.35755376,65837.0,65836.0,0.029654]
[1727610968513,0.33374536,65837.0,65836.0,0.029654]
[1727610970775,0.32452536,65837.0,65836.0,0.205754]
[1727610972383,0.43859904,65837.0,65836.0,0.205754]
[1727610972606,0.32452536,65837.0,65836.0,0.205754]
[1727610973074,0.43859848,65837.0,65836.0,0.205754]
[1727610973312,0.32452536,65837.0,65836.0,0.205754]
[1727610973536,0.43858035,65837.0,65836.0,0.205754]
[1727610973971,0.43857884,65837.0,65836.0,0.205754]
[1727610974190,0.41576702,65837.0,65836.0,0.205754]
[1727610974403,0.32452536,65837.0,65836.0,0.205754]
[1727610974624,0.41576702,65837.0,65836.0,0.205754]
[1727610975723,0.41076702,65837.0,65836.0,0.205754]
[1727610975943,0.41576702,65837.0,65836.0,0.205754]
[1727610976182,0.41674259,65837.0,65836.0,0.205754]
[1727610976409,0.23871943,65837.0,65836.0,0.205754]
[1727610976674,0.07031039,65837.0,65836.0,0.205754]
[1727610976886,0.1159084,65837.0,65836.0,0.205754]
[1727610977115,0.07031039,65837.0,65836.0,0.205754]
[1727610977364,0.0465022,65837.0,65836.0,0.205754]
[1727610978036,0.1983922,65837.0,65836.0,0.205754]
[1727610978691,0.0465022,65837.0,65836.0,0.205754]
[1727610979131,0.1983922,65837.0,65836.0,0.205754]
[1727610979591,0.0465022,65837.0,65836.0,0.205754]
[1727610979851,0.1983922,65837.0,65836.0,0.205754]
[1727610982619,0.0465022,65837.0,65836.0,0.205754]
[1727610983327,0.1983922,65837.0,65836.0,0.205754]
[1727610984284,0.0465022,65837.0,65836.0,0.205754]
[1727610984525,0.1983922,65837.0,65836.0,0.205754]
[1727611013392,0.2439789,65837.0,65836.0,0.205754]
[1727611015386,0.1983922,65837.0,65836.0,0.205754]
[1727611020513,0.2895656,65837.0,65836.0,0.205754]
[1727611021447,0.2896791,65837.0,65836.0,0.205754]
[1727611024472,0.1983922,65837.0,65836.0,0.205754]
[1727611025549,0.28968842,65837.0,65836.0,0.205754]
[1727611027393,0.1983922,65837.0,65836.0,0.205754]
[1727611027587,0.0465022,65837.0,65836.0,0.205754]
[1727611027820,0.1983922,65837.0,65836.0,0.205754]
[1727611028282,0.28968845,65837.0,65836.0,0.205754]
[1727611029164,0.13779845,65837.0,65836.0,0.205754]
[1727611029332,0.1983922,65837.0,65836.0,0.205754]
[1727611040394,0.31252305,65837.0,65836.0,0.205754]
[1727611040598,0.40471414,65837.0,65836.0,0.205754]
[1727611042852,0.31252305,65837.0,65836.0,0.205754]
[1727611043069,0.31252305,65837.0,65836.0,0.110254]
[1727611046006,0.31253765,65837.0,65836.0,0.110254]
[1727611046938,0.31253765,65837.0,65836.0,0.029654]
[1727611055737,0.31253811,65837.0,65836.0,0.029654]
[1727611060591,0.1983922,65837.0,65836.0,0.029654]
[1727611060819,0.31254014,65837.0,65836.0,0.029654]
[1727611065634,0.3125448,65837.0,65836.0,0.029654]
[1727611070582,0.31255024,65837.0,65836.0,0.029654]
[1727611079861,0.16066024,65837.0,65836.0,0.029654]
[1727611080086,0.31255024,65837.0,65836.0,0.029654]
[1727611080788,0.26640206,65837.0,65836.0,0.029654]
[1727611081019,0.1602969,65837.0,65836.0,0.029654]
[1727611081231,0.3121869,65837.0,65836.0,0.029654]
[1727611082332,0.1602969,65837.0,65836.0,0.029654]
[1727611082765,0.3121869,65837.0,65836.0,0.029654]
[1727611083408,0.1602969,65837.0,65836.0,0.029654]
[1727611083648,0.13739482,65837.0,65836.0,0.029654]
[1727611083874,0.13739438,65837.0,65836.0,0.209054]
[1727611084822,0.28928438,65837.0,65836.0,0.209054]
[1727611088462,0.13739438,65837.0,65836.0,0.209054]
[1727611088898,0.28928438,65837.0,65836.0,0.209054]
[1727611089564,0.13739438,65837.0,65836.0,0.209054]
[1727611089770,0.28928438,65837.0,65836.0,0.209054]
[1727611090443,0.13739438,65837.0,65836.0,0.209054]
[1727611090663,0.28928438,65837.0,65836.0,0.209054]
[1727611092911,0.13739438,65837.0,65836.0,0.209054]
[1727611093358,0.28928438,65837.0,65836.0,0.209054]
[1727611093815,0.28928406,65837.0,65836.0,0.209054]
[1727611095432,0.13739406,65837.0,65836.0,0.209054]
[1727611095918,0.28928406,65837.0,65836.0,0.209054]
[1727611096806,0.13739406,65837.0,65836.0,0.209054]
[1727611097051,0.28928406,65837.0,65836.0,0.209054]
[1727611098406,0.13739406,65837.0,65836.0,0.209054]
[1727611098849,0.13739403,65837.0,65836.0,0.209054]
[1727611099722,0.28928403,65837.0,65836.0,0.209054]
[1727611101019,0.13739403,65837.0,65836.0,0.209054]
[1727611101896,0.28928403,65837.0,65836.0,0.209054]
[1727611102106,0.13739403,65837.0,65836.0,0.209054]
[1727611102366,0.28928403,65837.0,65836.0,0.209054]
[1727611104352,0.13739403,65837.0,65836.0,0.209054]
[1727611104581,0.28928403,65837.0,65836.0,0.209054]
[1727611104792,0.13739403,65837.0,65836.0,0.209054]
[1727611105008,0.28928403,65837.0,65836.0,0.209054]
[1727611105665,0.13739403,65837.0,65836.0,0.209054]
[1727611105898,0.28928403,65837.0,65836.0,0.209054]
[1727611107713,0.13739403,65837.0,65836.0,0.209054]
[1727611107940,0.28928403,65837.0,65836.0,0.209054]
[1727611108167,0.13739403,65837.0,65836.0,0.209054]
[1727611108391,0.28928403,65837.0,65836.0,0.209054]
[1727611109300,0.13739403,65837.0,65836.0,0.209054]
[1727611109530,0.28928403,65837.0,65836.0,0.209054]
[1727611110205,0.13739403,65837.0,65836.0,0.209054]
[1727611112679,0.28928403,65837.0,65836.0,0.209054]
[1727611112888,0.13739403,65837.0,65836.0,0.209054]
[1727611113588,0.13739391,65837.0,65836.0,0.209054]
[1727611114717,0.02323678,65837.0,65836.0,0.209054]
[1727611116909,0.17512678,65837.0,65836.0,0.209054]
[1727611117933,0.02323678,65837.0,65836.0,0.209054]
[1727611118743,0.17512678,65837.0,65836.0,0.209054]
[1727611119418,0.02323678,65837.0,65836.0,0.209054]
[1727611119624,0.17512678,65837.0,65836.0,0.209054]
[1727611120170,0.02323678,65837.0,65836.0,0.209054]
[1727611121027,0.13739414,65837.0,65836.0,0.209054]
[1727611121490,0.28928414,65837.0,65836.0,0.209054]
[1727611121711,0.13739414,65837.0,65836.0,0.209054]
[1727611122144,0.13739414,65837.0,65836.0,0.360946]
[1727611122351,0.13739414,65837.0,65836.0,0.209054]
[1727611123032,0.13739423,65837.0,65836.0,0.209054]
[1727611124805,0.13739423,65837.0,65836.0,0.360946]
[1727611125032,0.13739423,65837.0,65836.0,0.209054]
[1727611127051,0.28928423,65837.0,65836.0,0.209054]
[1727611127515,0.13739423,65837.0,65836.0,0.209054]
[1727611128013,0.28928423,65837.0,65836.0,0.209054]
[1727611129093,0.13739423,65837.0,65836.0,0.360946]
[1727611129315,0.13739423,65837.0,65836.0,0.209054]
[1727611133987,0.13739423,65837.0,65836.0,0.360946]
[1727611134448,0.13739423,65837.0,65836.0,0.209054]
[1727611136221,0.28928423,65837.0,65836.0,0.209054]
[1727611137532,0.13739423,65837.0,65836.0,0.209054]
[1727611138000,0.1373943,65837.0,65836.0,0.209054]
[1727611138648,0.2892843,65837.0,65836.0,0.209054]
[1727611141493,0.1373943,65837.0,65836.0,0.209054]
[1727611141703,0.2892843,65837.0,65836.0,0.209054]
[1727611141939,0.1373943,65837.0,65836.0,0.209054]
[1727611142142,0.2892843,65837.0,65836.0,0.209054]
[1727611142775,0.1373943,65837.0,65836.0,0.209054]
[1727611143239,0.2892843,65837.0,65836.0,0.209054]
[1727611145376,0.1373943,65837.0,65836.0,0.209054]
[1727611145588,0.2892843,65837.0,65836.0,0.209054]
[1727611146872,0.1373943,65837.0,65836.0,0.209054]
[1727611147107,0.2892843,65837.0,65836.0,0.209054]
[1727611151447,0.28928424,65837.0,65836.0,0.209054]
[1727611152100,0.13739424,65837.0,65836.0,0.209054]
[1727611152543,0.28928424,65837.0,65836.0,0.209054]
[1727611156860,0.13739424,65837.0,65836.0,0.209054]
[1727611157072,0.28928424,65837.0,65836.0,0.209054]
[1727611158673,0.13739424,65837.0,65836.0,0.209054]
[1727611158886,0.28928424,65837.0,65836.0,0.209054]
[1727611161931,0.13739424,65837.0,65836.0,0.209054]
[1727611162164,0.28928424,65837.0,65836.0,0.209054]
[1727611162576,0.13739424,65837.0,65836.0,0.209054]
[1727611164356,0.28928424,65837.0,65836.0,0.209054]
[1727611164813,0.13739424,65837.0,65836.0,0.209054]
[1727611165056,0.28928424,65837.0,65836.0,0.209054]
[1727611165921,0.13739424,65837.0,65836.0,0.209054]
[1727611166347,0.28928431,65837.0,65836.0,0.209054]
[1727611166777,0.13739431,65837.0,65836.0,0.209054]
[1727611166990,0.28928431,65837.0,65836.0,0.209054]
[1727611167206,0.13739431,65837.0,65836.0,0.209054]
[1727611167425,0.28928431,65837.0,65836.0,0.209054]
[1727611170590,0.13739431,65837.0,65836.0,0.209054]
[1727611170798,0.28928431,65837.0,65836.0,0.209054]
[1727611171240,0.28928428,65837.0,65836.0,0.209054]
[1727611173883,0.13739428,65837.0,65836.0,0.029654]
[1727611174356,0.13739428,65837.0,65836.0,0.125154]
[1727611174779,0.13739428,65837.0,65836.0,0.277046]
[1727611175002,0.13739428,65837.0,65836.0,0.125154]
[1727611176093,0.13739419,65837.0,65836.0,0.125154]
[1727611176947,0.13739421,65837.0,65836.0,0.125154]
[1727611180457,0.28928421,65837.0,65836.0,0.125154]
[1727611180687,0.13739421,65837.0,65836.0,0.125154]
[1727611181129,0.13739426,65837.0,65836.0,0.125154]
[1727611190916,0.13739436,65837.0,65836.0,0.125154]
[1727611192623,0.13739436,65837.0,65836.0,0.277046]
[1727611192822,0.13739436,65837.0,65836.0,0.125154]
[1727611193980,0.13739436,65837.0,65836.0,0.277046]
[1727611194229,0.13739436,65837.0,65836.0,0.125154]
[1727611201441,0.13739436,65837.0,65836.0,0.277046]
[1727611201928,0.11456124,65837.0,65836.0,0.46575806]
[1727611202176,0.11456124,65837.0,65836.0,0.354526]
[1727611202177,0.09172744,65837.0,65836.0,0.354526]
[1727611202440,0.02323678,65837.0,65836.0,0.354526]
[1727611204156,0.02323678,65837.0,65836.0,0.340526]
[1727611204401,0.02323678,65837.0,65836.0,0.354526]
[1727611205054,0.02323678,65837.0,65836.0,0.637716]
[1727611205500,0.02323678,65837.0,65836.0,0.651716]
[1727611205937,0.02323678,65837.0,65836.0,0.637716]
[1727611206187,0.02323678,65837.0,65836.0,0.651716]
[1727611210875,0.02323678,65837.0,65836.0,0.6623555]
[1727611212186,0.02323678,65837.0,65836.0,0.54345344]
[1727611212409,0.02323678,65837.0,65836.0,0.53281394]
[1727611217762,0.00035402,65837.0,65836.0,0.53281394]
[1727611224399,0.00035402,65837.0,65836.0,0.51881394]
[1727611224607,0.00035402,65837.0,65836.0,0.53281394]
[1727611225309,0.00035402,65837.0,65836.0,0.50481394]
[1727611225512,0.00035402,65837.0,65836.0,0.51881394]
[1727611226156,0.00035402,65837.0,65836.0,0.53281394]
[1727611226369,0.00035402,65837.0,65836.0,0.51881394]
[1727611226580,0.00035402,65837.0,65836.0,0.53281394]
[1727611229925,0.00035402,65837.0,65836.0,0.64791938]
[1727611248324,0.00035402,65837.0,65836.0,0.69340175]
[1727611249266,0.00035402,65837.0,65836.0,0.64791938]
[1727611249696,0.00035402,65837.0,65836.0,0.63391938]
[1727611249907,0.00035402,65837.0,65836.0,0.61991938]
[1727611250121,0.00035402,65837.0,65836.0,0.64791938]
[1727611250601,0.00035402,65837.0,65836.0,0.8622512]
[1727611251015,0.00035402,65837.0,65836.0,0.97595714]
[1727611251222,0.00035402,65837.0,65836.0,0.8622512]
[1727611251658,0.00035402,65837.0,65836.0,0.64791938]
[1727611251872,0.00035402,65837.0,65836.0,0.95316115]
[1727611252106,0.00035402,65837.0,65836.0,0.92516115]
[1727611252564,0.00035402,65837.0,65836.0,0.95316115]
[1727611252779,0.00035402,65837.0,65836.0,0.86204379]
[1727611253657,0.00035402,65837.0,65836.0,0.9531612]
[1727611255365,0.00035402,65837.0,65836.0,0.86204379]
[1727611255619,0.00035402,65837.0,65836.0,0.9531612]
[1727611256300,0.00035402,65837.0,65836.0,0.86204379]
[1727611257397,0.00035402,65837.0,65836.0,0.9531612]
[1727611258339,0.00035402,65837.0,65836.0,0.86204379]
[1727611258595,0.00035402,65837.0,65836.0,0.9759405]
[1727611259282,0.00035402,65837.0,65836.0,0.9809405]
[1727611259523,0.00035402,65837.0,65836.0,0.96704379]
[1727611260181,0.00035402,65837.0,65836.0,1.02177702]
[1727611260643,0.00035402,65837.0,65836.0,1.00777702]
[1727611260866,0.00035402,65837.0,65836.0,1.14571611]
[1727611261075,0.00035402,65837.0,65836.0,1.15971611]
[1727611261543,0.00035402,65837.0,65836.0,0.96841147]
[1727611261987,0.00035402,65837.0,65836.0,0.95441147]
[1727611262433,0.00035402,65837.0,65836.0,0.94041147]
[1727611262863,0.00035402,65837.0,65836.0,0.96841147]
[1727611263297,0.00035402,65837.0,65836.0,0.95441147]
[1727611263789,0.00035402,65837.0,65836.0,0.96841147]
[1727611264630,0.00035402,65837.0,65836.0,0.96806111]
[1727611265093,0.00035402,65837.0,65836.0,0.95406111]
[1727611265308,0.00035402,65837.0,65836.0,0.96806111]
[1727611265766,0.00035402,65837.0,65836.0,0.95406111]
[1727611266509,0.000827,65839.0,65838.0,0.159667]
[1727611266753,0.000827,65839.0,65838.0,1.06362582]
[1727611266994,0.000827,65839.0,65838.0,0.94692975]
[1727611267492,0.000827,65852.0,65851.0,0.329637]
[1727611267734,0.000827,65852.0,65851.0,0.60792494]
[1727611268214,0.000827,65852.0,65851.0,0.65337363]
[1727611268470,0.000827,65852.0,65851.0,0.72303038]
[1727611269202,0.000827,65852.0,65851.0,0.73703038]
[1727611269682,0.000827,65852.0,65851.0,0.75103038]
[1727611270876,0.000827,65852.0,65851.0,0.75303038]
[1727611271111,0.000827,65852.0,65851.0,0.75103038]
[1727611271614,0.000827,65852.0,65851.0,0.74603038]
[1727611271862,0.000827,65852.0,65851.0,0.58502903]
[1727611272131,0.000827,65852.0,65851.0,0.56202903]
[1727611273265,0.000827,65852.0,65851.0,0.58502903]
[1727611280562,0.000827,65852.0,65851.0,0.57403038]
[1727611285906,0.000827,65852.0,65851.0,0.74893038]
[1727611289536,0.000827,65852.0,65851.0,0.98083696]
[1727611289759,0.000827,65852.0,65851.0,0.75393038]
[1727611292752,0.000827,65852.0,65851.0,0.73993038]
[1727611293211,0.000827,65852.0,65851.0,0.74193038]
[1727611293467,0.000827,65852.0,65851.0,0.75593038]
[1727611293919,0.000827,65852.0,65851.0,0.940931]
[1727611294184,0.000827,65852.0,65851.0,1.0696805]
[1727611294408,0.000827,65860.0,65859.0,0.454519]
[1727611294624,0.000827,65860.0,65859.0,0.60980694]
[1727611294835,0.000827,65860.0,65859.0,0.68564104]
[1727611295561,0.000827,65860.0,65859.0,0.68764104]
[1727611296707,0.000827,65860.0,65859.0,0.98043028]
[1727611296926,0.000827,65860.0,65859.0,1.11822439]
[1727611297144,0.0001,65864.0,65863.0,0.49697]
[1727611297367,0.0001,65864.0,65863.0,0.87567308]
[1727611297585,0.0001,65864.0,65863.0,0.96636834]
[1727611298471,0.0001,65864.0,65863.0,0.94367608]
[1727611298693,0.0001,65864.0,65863.0,1.06750916]
[1727611299137,0.0001,65864.0,65863.0,1.08150916]
[1727611299365,0.0001,65864.0,65863.0,0.85809402]
[1727611299792,0.0001,65864.0,65863.0,0.87209402]
[1727611300247,0.0001,65864.0,65863.0,1.09492516]
[1727611300456,0.0001,65864.0,65863.0,0.80409102]
[1727611306281,0.0001,65864.0,65863.0,0.90823101]
[1727611307844,0.0001,65864.0,65863.0,0.91023101]
[1727611308920,0.0001,65864.0,65863.0,1.13713759]
[1727611309143,0.0001,65864.0,65863.0,1.15553359]
[1727611309359,0.0001,65864.0,65863.0,1.08754945]
[1727611311424,0.0001,65864.0,65863.0,1.08554945]
[1727611311895,0.0001,65864.0,65863.0,1.08489772]
[1727611312111,0.22690658,65885.0,65880.0,0.152571]
[1727611312321,0.22690658,65885.0,65880.0,0.53769384]
[1727611312742,0.077,65891.0,65880.0,0.53769384]
[1727611313386,0.077,65891.0,65880.0,0.55169384]
[1727611314039,0.077,65891.0,65880.0,0.56569384]
[1727611318317,0.09,65882.0,65880.0,0.45885894]
[1727611318566,0.07852777,65881.0,65880.0,0.02878]
[1727611318819,0.11968056,65881.0,65880.0,0.02878]
[1727611319305,0.11968056,65881.0,65880.0,0.01478]
[1727611319529,0.11968056,65881.0,65880.0,0.166571]
[1727611319784,0.11968056,65881.0,65880.0,0.02878]
[1727611319993,0.11968056,65881.0,65880.0,0.180571]
[1727611320231,0.11968056,65881.0,65880.0,0.152571]
[1727611320705,0.11968056,65881.0,65880.0,0.180571]
[1727611320936,0.07852777,65881.0,65880.0,0.166571]
[1727611321196,0.12036936,65881.0,65880.0,0.180571]
[1727611324988,0.07852777,65881.0,65880.0,0.180571]
[1727611325200,0.12035611,65881.0,65880.0,0.180571]
[1727611325423,0.12118311,65881.0,65880.0,0.180571]
[1727611326091,0.12118311,65881.0,65880.0,0.179971]
[1727611326318,0.12118311,65881.0,65880.0,0.179671]
[1727611326785,0.12118311,65881.0,65880.0,0.179571]
[1727611326999,0.12118311,65881.0,65880.0,0.178871]
[1727611327277,0.12118311,65881.0,65880.0,0.178671]
[1727611327711,0.12118311,65881.0,65880.0,0.178171]
[1727611327946,0.12118311,65881.0,65880.0,0.177771]
[1727611328160,0.07935477,65881.0,65880.0,0.177671]
[1727611328611,0.07935477,65881.0,65880.0,0.177271]
[1727611328612,0.12118311,65881.0,65880.0,0.177271]
[1727611328845,0.1107168,65881.0,65880.0,0.176971]
[1727611329066,0.12118311,65881.0,65880.0,0.176871]
[1727611329278,0.12118311,65881.0,65880.0,0.176671]
[1727611329496,0.12118311,65881.0,65880.0,0.176271]
[1727611329747,0.12118311,65881.0,65880.0,0.175971]
[1727611330005,0.12118311,65881.0,65880.0,0.198971]
[1727611330006,0.00175477,65881.0,65880.0,0.198971]
[1727611330221,0.00175477,65881.0,65880.0,0.198771]
[1727611330443,0.00175477,65881.0,65880.0,0.198571]
[1727611332709,0.04358311,65881.0,65880.0,0.198571]
[1727611333398,0.00175477,65881.0,65880.0,0.198571]
[1727611334809,0.04358311,65881.0,65880.0,0.198571]
[1727611335513,0.00175477,65881.0,65880.0,0.198571]
[1727611337124,0.04358311,65881.0,65880.0,0.198571]
[1727611337363,0.00175477,65881.0,65880.0,0.198571]
[1727611338063,0.04358311,65881.0,65880.0,0.198571]
[1727611338303,0.00175477,65881.0,65880.0,0.198571]
[1727611339227,0.04359416,65881.0,65880.0,0.198571]
[1727611339454,0.00175477,65881.0,65880.0,0.198571]
[1727611340132,0.04359416,65881.0,65880.0,0.198571]
[1727611340356,0.00175477,65881.0,65880.0,0.35385894]
[1727611350516,0.00175477,65881.0,65880.0,0.35551294]
[1727611356310,0.00175477,65881.0,65880.0,0.177225]
[1727611357643,0.04359253,65881.0,65880.0,0.200225]
[1727611358049,0.00175477,65881.0,65880.0,0.200225]
[1727611358292,0.04359253,65881.0,65880.0,0.200225]
[1727611358501,0.00175477,65881.0,65880.0,0.200225]
[1727611358684,0.04359253,65881.0,65880.0,0.200225]
[1727611358892,0.00175477,65881.0,65880.0,0.200225]
[1727611359102,0.04359253,65881.0,65880.0,0.200225]
[1727611359306,0.00175477,65881.0,65880.0,0.200225]
[1727611359930,0.04359253,65881.0,65880.0,0.200225]
[1727611360163,0.00175477,65881.0,65880.0,0.200225]
[1727611360376,0.04359253,65881.0,65880.0,0.200225]
[1727611360587,0.00175477,65881.0,65880.0,0.200225]
[1727611360787,0.03360194,65881.0,65880.0,0.200225]
[1727611360999,0.0340707,65881.0,65880.0,0.200225]
[1727611361426,0.01813241,65881.0,65880.0,0.200225]
[1727611361640,0.00175477,65881.0,65880.0,0.200225]
[1727611361851,0.01812976,65881.0,65880.0,0.200225]
[1727611362698,0.00175477,65881.0,65880.0,0.200225]
[1727611362918,0.01812976,65881.0,65880.0,0.200225]
[1727611363123,0.00175477,65881.0,65880.0,0.200225]
[1727611363327,0.01812976,65881.0,65880.0,0.200225]
[1727611363535,0.00175477,65881.0,65880.0,0.200225]
[1727611363738,0.01812976,65881.0,65880.0,0.200225]
[1727611363985,0.00175477,65881.0,65880.0,0.200225]
[1727611364426,0.01812976,65881.0,65880.0,0.200225]
[1727611366589,0.00175477,65881.0,65880.0,0.200225]
[1727611367017,0.018136,65881.0,65880.0,0.200225]
[1727611367247,0.00175477,65881.0,65880.0,0.200225]
[1727611367675,0.018136,65881.0,65880.0,0.200225]
[1727611367871,0.00175477,65881.0,65880.0,0.200225]
[1727611368229,0.018136,65881.0,65880.0,0.200225]
[1727611368431,0.00175477,65881.0,65880.0,0.200225]
[1727611368860,0.018136,65881.0,65880.0,0.200225]
[1727611370147,0.00175477,65881.0,65880.0,0.200225]
[1727611371182,0.018136,65881.0,65880.0,0.200225]
[1727611371548,0.00175477,65881.0,65880.0,0.200225]
[1727611380682,0.00175477,65881.0,65880.0,0.177225]
[1727611381589,0.01813667,65881.0,65880.0,0.029654]
[1727611381827,0.01813667,65881.0,65880.0,0.181445]
[1727611382047,0.00175477,65881.0,65880.0,0.181445]
[1727611382503,0.02796802,65881.0,65880.0,0.181445]
[1727611382712,0.02925957,65881.0,65880.0,0.181445]
[1727611382929,0.05547282,65881.0,65880.0,0.181445]
[1727611383658,0.00175477,65881.0,65880.0,0.181445]
[1727611384756,0.02796011,65881.0,65880.0,0.181445]
[1727611385221,0.00175477,65881.0,65880.0,0.181445]
[1727611386338,0.02796011,65881.0,65880.0,0.181445]
[1727611386560,0.00175477,65881.0,65880.0,0.181445]
[1727611386772,0.02663795,65881.0,65880.0,0.181445]
[1727611386996,0.00175477,65881.0,65880.0,0.181445]
[1727611388509,0.02796011,65881.0,65880.0,0.181445]
[1727611388723,0.00175477,65881.0,65880.0,0.181445]
[1727611388928,0.02357134,65881.0,65880.0,0.181445]
[1727611389163,0.02796011,65881.0,65880.0,0.181445]
[1727611390272,0.00175477,65881.0,65880.0,0.181445]
[1727611391373,0.02796011,65881.0,65880.0,0.181445]
[1727611391596,0.00175477,65881.0,65880.0,0.181445]
[1727611391806,0.02796011,65881.0,65880.0,0.181445]
[1727611392008,0.00175477,65881.0,65880.0,0.181445]
[1727611392755,0.02796011,65881.0,65880.0,0.181445]
[1727611392965,0.00175477,65881.0,65880.0,0.181445]
[1727611393848,0.02795971,65881.0,65880.0,0.181445]
[1727611394277,0.00175477,65881.0,65880.0,0.181445]
[1727611394693,0.02795971,65881.0,65880.0,0.181445]
[1727611394954,0.00175477,65881.0,65880.0,0.181445]
[1727611397176,0.00175477,65881.0,65880.0,0.260545]
[1727611399449,0.00175477,65881.0,65880.0,0.181445]
[1727611415205,0.02796413,65881.0,65880.0,0.181445]
[1727611415456,0.00175477,65881.0,65880.0,0.181445]
[1727611415669,0.02796413,65881.0,65880.0,0.181445]
[1727611416316,0.00175477,65881.0,65880.0,0.181445]
[1727611417005,0.02796675,65881.0,65880.0,0.181445]
[1727611417234,0.00175477,65881.0,65880.0,0.181445]
[1727611417462,0.02796675,65881.0,65880.0,0.181445]
[1727611417677,0.00175477,65881.0,65880.0,0.181445]
[1727611418131,0.02796675,65881.0,65880.0,0.181445]
[1727611418342,0.00175477,65881.0,65880.0,0.181445]
[1727611418781,0.02796675,65881.0,65880.0,0.181445]
[1727611418988,0.00175477,65881.0,65880.0,0.181445]
[1727611435327,0.00175477,65881.0,65880.0,0.280145]
[1727611444874,0.00175477,65881.0,65880.0,0.356245]